[Event "24th Bosnjaci Open 2019"]
[Site "Bosnjaci"]
[Date "2019.01.05"]
[Round "4.9"]
[White "Babic, Zvonko"]
[Black "Stocko, Josip"]
[Result "1/2-1/2"]
[ECO "B86"]
[WhiteElo "2190"]
[BlackElo "2282"]
[Annotator "NA"]
[PlyCount "31"]
[EventDate "2019.01.03"]
[EventType "swiss"]
[EventCountry "CRO"]
[SourceTitle "playchess.com"]
[Source "ChessBase"]
[SourceQuality "1"]
[TimeControl "5400+30"]

1. e4 {[%emt 0:00:30]} c5 {[%emt 0:00:30]} 2. Nf3 {[%emt 0:00:00]} d6 {[%emt 0:00:30]} 3. d4 {[%emt 0:00:00]} cxd4 {[%emt 0:00:00]} 4. Nxd4 {[%emt 0:00:30]} Nf6 {[%emt 0:00:00]} 5. Nc3 {[%emt 0:00:00]} a6 {[%emt 0:00:30]} 6. Bc4 {[%emt 0:00:00]} e6 {[%emt 0:00:00]} 7. Bb3 {[%emt 0:00:30]} Nbd7 {[%emt 0:00:00]} 8. f4 {[%emt 0:00:30]} Nc5 {[%emt 0:01:30]} 9. f5 {[%emt 0:00:30]} e5 {[%emt 0:04:30]} 10. Nde2 {[%emt 0:01:30]} Qa5 {[%emt 0:05:30]} 11. Bd2 {[%emt 0:20:30]} Qc7 {[%emt 0:02:30]} 12. Nd5 {[%emt 0:07:30]} Nxd5 {[%emt 0:01:30]} 13. Bxd5 {[%emt 0:00:00]} Nd7 {[%emt 0:22:30]} 14. Ng3 {[%emt 0:10:00]} Nf6 {[%emt 0:02:30]} 15. Bb3 {[%emt 0:01:30]} h6 {[%emt 0:14:30]} 16. O-O {[%emt 0:07:30]} 1/2-1/2

[Event "24th Bosnjaci Open 2019"]
[Site "Bosnjaci"]
[Date "2019.01.05"]
[Round "4.10"]
[White "Duda, Daniel"]
[Black "Muratovic, Efim"]
[Result "0-1"]
[ECO "D52"]
[WhiteElo "1991"]
[BlackElo "2389"]
[Annotator "NA"]
[PlyCount "72"]
[EventDate "2019.01.03"]
[EventType "swiss"]
[EventCountry "CRO"]
[SourceTitle "playchess.com"]
[Source "ChessBase"]
[SourceQuality "1"]
[TimeControl "5400+30"]

1. d4 {[%emt 0:00:30]} Nf6 {[%emt 0:00:30]} 2. c4 {[%emt 0:00:00]} e6 {[%emt 0:00:30]} 3. Nc3 {[%emt 0:00:00]} d5 {[%emt 0:00:00]} 4. Bg5 {[%emt 0:00:00]} Nbd7 {[%emt 0:00:00]} 5. Nf3 {[%emt 0:00:00]} c6 {[%emt 0:00:30]} 6. e3 {[%emt 0:00:30]} Qa5 {[%emt 0:00:30]} 7. cxd5 {[%emt 0:01:30]} Nxd5 {[%emt 0:05:30]} 8. Qb3 {[%emt 0:02:30]} Bb4 {[%emt 0:09:30]} 9. Rc1 {[%emt 0:01:30]} e5 {[%emt 0:10:30]} 10. Bc4 {[%emt 0:11:30]} N7b6 {[%emt 0:23:30]} 11. Bxd5 {[%emt 0:38:30]} Nxd5 {[%emt 0:01:30]} 12. a3 {[%emt 0:03:30]} Bxc3+ {[%emt 0:10:30]} 13. bxc3 {[%emt 0:00:00]} e4 {[%emt 0:02:30]} 14. Ne5 {[%emt 0:04:00]} O-O {[%emt 0:01:30]} 15. O-O {[%emt 0:00:30]} f6 {[%emt 0:08:30]} 16. Nc4 {[%emt 0:00:30]} Qb5 {[%emt 0:00:30]} 17. Qa2 {[%emt 0:04:30]} fxg5 {[%emt 0:03:05]} 18. Nd6 {[%emt 0:00:30]} Qa5 {[%emt 0:05:37]} 19. c4 {[%emt 0:04:30]} Nf6 {[%emt 0:02:21]} 20. c5+ {[%emt 0:00:30]} Nd5 {[%emt 0:03:36]} 21. Nxe4 {[%emt 0:01:30]} h6 {[%emt 0:03:14]} 22. Nd6 {[%emt 0:00:30]} Kh8 {[%emt 0:01:41]} 23. Qc2 {[%emt 0:01:30]} Qc7 {[%emt 0:00:59]} 24. e4 {[%emt 0:01:30]} Nf4 {[%emt 0:00:22]} 25. g3 {[%emt 0:00:00]} Nh3+ {[%emt 0:00:36]} 26. Kg2 {[%emt 0:00:00]} g4 {[%emt 0:00:18]} 27. Rcd1 {[%emt 0:01:30]} Qe7 {[%emt 0:01:04]} 28. d5 {[%emt 0:00:30]} Qg5 {[%emt 0:01:16]} 29. Rd3 {[%emt 0:00:30]} Qh5 {[%emt 0:00:22]} 30. f4 {[%emt 0:00:30]} gxf3+ {[%emt 0:01:14]} 31. Rdxf3 {[%emt 0:00:30]} Rxf3 {[%emt 0:00:14]} 32. Rxf3 {[%emt 0:00:00]} Bg4 {[%emt 0:00:00]} 33. Rf7 {[%emt 0:00:00]} Ng5 {[%emt 0:00:07]} 34. Rxb7 {[%emt 0:00:30]} Qh3+ {[%emt 0:00:15]} 35. Kg1 {[%emt 0:00:30]} Nf3+ {[%emt 0:00:14]} 36. Kh1 {[%emt 0:00:30]} Qf1# {[%emt 0:00:10]} 0-1

[Event "24th Bosnjaci Open 2019"]
[Site "Bosnjaci"]
[Date "2019.01.05"]
[Round "4.11"]
[White "Goric, Esad"]
[Black "Radovic, Sinisa"]
[Result "1-0"]
[ECO "A39"]
[WhiteElo "2260"]
[BlackElo "1955"]
[Annotator "NA RC"]
[PlyCount "91"]
[EventDate "2019.01.03"]
[EventType "swiss"]
[EventCountry "CRO"]
[SourceTitle "playchess.com"]
[Source "ChessBase"]
[SourceQuality "1"]
[TimeControl "5400+30"]

1. c4 {[%emt 0:00:30]} c5 {[%emt 0:03:30]} 2. Nc3 {[%emt 0:01:30]} Nc6 {[%emt 0:01:30]} 3. g3 {[%emt 0:00:30]} g6 {[%emt 0:00:30]} 4. Bg2 {[%emt 0:00:00]} Bg7 {[%emt 0:00:00]} 5. Nf3 {[%emt 0:00:00]} Nf6 {[%emt 0:00:00]} 6. O-O {[%emt 0:00:30]} O-O {[%emt 0:00:30]} 7. d4 {[%emt 0:00:30]} cxd4 {[%emt 0:00:30]} 8. Nxd4 {[%emt 0:00:00]} Nxd4 {[%emt 0:01:30]} 9. Qxd4 {[%emt 0:00:00]} d6 {[%emt 0:00:30]} 10. b3 {[%emt 0:01:30]} a6 {[%emt 0:03:30]} 11. Bb2 {[%emt 0:00:30]} Nd7 {[%emt 0:00:00]} 12. Qd2 {[%emt 0:00:00]} Rb8 {[%emt 0:01:00]} 13. Nd5 {[%emt 0:01:00]} Bxb2 {[%emt 0:05:30]} 14. Qxb2 {[%emt 0:00:00]} b6 {[%emt 0:00:30]} 15. Nb4 {[%emt 0:03:00]} Bb7 {[%emt 0:03:30]} 16. Bxb7 {[%emt 0:00:30]} Rxb7 {[%emt 0:00:00]} 17. Nxa6 {[%emt 0:00:30]} b5 {[%emt 0:01:00]} 18. cxb5 {[%emt 0:00:00]} Rxb5 {[%emt 0:00:00]} 19. a3 {[%emt 0:01:00]} Qb6 {[%emt 0:03:00]} 20. Nb4 {[%emt 0:00:00]} Nf6 {[%emt 0:01:30]} 21. Qc3 {[%emt 0:02:00]} Ne4 {[%emt 0:11:30]} 22. Qd3 {[%emt 0:03:30]} Qb7 {[%emt 0:03:30]} 23. f3 {[%emt 0:06:30]} Nc5 {[%emt 0:02:30]} 24. Qe3 {[%emt 0:00:30]} Ne6 {[%emt 0:03:30]} 25. Rfc1 {[%emt 0:02:30]} Re5 {[%emt 0:00:30]} 26. Qf2 {[%emt 0:00:30]} f5 {[%emt 0:06:30]} 27. Nd3 {[%emt 0:01:30]} Ng5 {[%emt 0:00:30]} 28. Kg2 {[%emt 0:01:30]} Re6 {[%emt 0:02:30]} 29. Nf4 {[%emt 0:03:30]} Re5 {[%emt 0:02:30]} 30. b4 {[%emt 0:00:00]} Nf7 {[%emt 0:01:30]} 31. Nd3 {[%emt 0:02:00]} Rd5 {[%emt 0:01:30]} 32. Rc2 {[%emt 0:00:30]} e5 {[%emt 0:00:30]} 33. Rac1 {[%emt 0:00:30]} g5 {[%emt 0:02:30]} 34. Qe3 {[%emt 0:01:30]} Re8 {[%emt 0:02:30]} 35. Rc7 {[%emt 0:00:30]} Qb5 {[%emt 0:00:30]} 36. Rxf7 {[%emt 0:00:30]} Kxf7 {[%emt 0:00:30]} 37. Qxg5 {[%emt 0:00:30]} Qd7 {[%emt 0:00:30]} 38. Nf2 {[%emt 0:01:30]} Rg8 {[%emt 0:08:30]} 39. Qh5+ {[%emt 0:00:30]} Kg7 {[%emt 0:01:30]} 40. e4 {[%emt 0:00:30]} fxe4 {[%emt 0:04:30]} 41. Nxe4 {[%emt 0:00:30]} Qf7 {[%emt 0:04:30]} 42. Qh4 {[%emt 0:03:00]} Rd4 {[%emt 0:03:40]} 43. Rc7 {[%emt 0:03:30]} Rd5 {[%emt 0:01:53]} 44. Rc1 {[%emt 0:00:30]} Rf8 {[%emt 0:00:33]} 45. Ng5 {[%emt 0:00:30]} Rd2+ {[%emt 0:00:30]} 46. Kh1 {[%emt 0:00:30]} 1-0

[Event "24th Bosnjaci Open 2019"]
[Site "Bosnjaci"]
[Date "2019.01.05"]
[Round "4.12"]
[White "Sipic, Hrvoje"]
[Black "Dejanovic, Tereza"]
[Result "1-0"]
[ECO "D02"]
[WhiteElo "2213"]
[BlackElo "1916"]
[Annotator "NA"]
[PlyCount "57"]
[EventDate "2019.01.03"]
[EventType "swiss"]
[EventCountry "CRO"]
[SourceTitle "playchess.com"]
[Source "ChessBase"]
[SourceQuality "1"]
[TimeControl "5400+30"]

1. d4 {[%emt 0:00:30]} d5 {[%emt 0:00:30]} 2. Bf4 {[%emt 0:00:00]} e6 {[%emt 0:00:00]} 3. Nf3 {[%emt 0:00:00]} Bd6 {[%emt 0:00:00]} 4. Bg3 {[%emt 0:00:00]} Nf6 {[%emt 0:00:30]} 5. e3 {[%emt 0:00:00]} O-O {[%emt 0:00:30]} 6. Bd3 {[%emt 0:00:30]} c5 {[%emt 0:03:30]} 7. Nbd2 {[%emt 0:01:30]} cxd4 {[%emt 0:04:30]} 8. exd4 {[%emt 0:00:30]} Nc6 {[%emt 0:01:30]} 9. c3 {[%emt 0:06:30]} Re8 {[%emt 0:03:30]} 10. Ne5 {[%emt 0:01:30]} Qc7 {[%emt 0:03:30]} 11. f4 {[%emt 0:03:30]} b6 {[%emt 0:06:30]} 12. O-O {[%emt 0:01:30]} g6 {[%emt 0:04:30]} 13. Rf3 {[%emt 0:06:30]} Bb7 {[%emt 0:06:30]} 14. Bh4 {[%emt 0:02:30]} Be7 {[%emt 0:00:00]} 15. Qe2 {[%emt 0:08:30]} Nh5 {[%emt 0:09:00]} 16. Bxe7 {[%emt 0:13:30]} Qxe7 {[%emt 0:03:30]} 17. g4 {[%emt 0:02:30]} Nf6 {[%emt 0:01:30]} 18. Rh3 {[%emt 0:01:30]} Kg7 {[%emt 0:05:30]} 19. Rf1 {[%emt 0:03:30]} Nd7 {[%emt 0:10:30]} 20. Qf2 {[%emt 0:06:30]} Ncxe5 {[%emt 0:08:30]} 21. fxe5 {[%emt 0:01:30]} Rh8 {[%emt 0:08:13]} 22. Rf3 {[%emt 0:07:30]} Raf8 {[%emt 0:02:41]} 23. h4 {[%emt 0:02:30]} Bc6 {[%emt 0:06:57]} 24. h5 {[%emt 0:02:30]} Qe8 {[%emt 0:03:12]} 25. Qh4 {[%emt 0:03:30]} h6 {[%emt 0:01:16]} 26. R3f2 {[%emt 0:08:09]} a5 {[%emt 0:02:32]} 27. Nf3 {[%emt 0:00:56]} Nb8 {[%emt 0:02:11]} 28. Qf6+ {[%emt 0:02:14]} Kh7 {[%emt 0:00:03]} 29. Nh4 {[%emt 0:00:32]} 1-0

[Event "24th Bosnjaci Open 2019"]
[Site "Bosnjaci"]
[Date "2019.01.05"]
[Round "4.13"]
[White "Pasalic, Adnan"]
[Black "Ljikar, Zoran"]
[Result "0-1"]
[ECO "E10"]
[WhiteElo "1973"]
[BlackElo "2207"]
[Annotator "NA"]
[PlyCount "142"]
[EventDate "2019.01.03"]
[EventType "swiss"]
[EventCountry "CRO"]
[SourceTitle "playchess.com"]
[Source "ChessBase"]
[SourceQuality "1"]
[TimeControl "5400+30"]

1. d4 {[%emt 0:00:30]} Nf6 {[%emt 0:22:30]} 2. c4 {[%emt 0:00:30]} e6 {[%emt 0:00:30]} 3. Nf3 {[%emt 0:00:00]} c5 {[%emt 0:00:30]} 4. d5 {[%emt 0:00:00]} exd5 {[%emt 0:00:30]} 5. cxd5 {[%emt 0:00:30]} b5 {[%emt 0:01:30]} 6. e4 {[%emt 0:08:30]} Nxe4 {[%emt 0:01:30]} 7. Bd3 {[%emt 0:03:30]} f5 {[%emt 0:07:30] E10: Blumenfeld Gambit} (7... Nf6 8. Bxb5 Qb6 9. Nc3 Ba6 10. a4 Bxb5 11. axb5 Be7 12. O-O O-O 13. Re1 Re8 14. Bg5 Kf8 15. d6 Qxd6 16. Bxf6 gxf6 17. Qc2 {1-0 (17) Lalic,B (2491)-Postny,E (2559) Port Erin 2005}) 8. O-O {[%emt 0:02:30]} Be7 $146 {[%emt 0:01:30]} ({Predecessor:} 8... Bd6 9. Nc3 Nxc3 10. bxc3 O-O 11. Bxb5 Ba6 12. a4 Qa5 13. Qd3 Bxb5 14. Qxb5 Qc7 15. Re1 {1-0 (23) Jimenez Alonso,J (2039)-Chuprys,V (1179) IECG email 2001}) 9. Bxb5 {[%emt 0:00:30]} Qb6 {[%emt 0:05:30]} 10. Na3 {[%emt 0:02:30]} O-O {[%emt 0:00:30]} 11. Ne5 {[%emt 0:35:30]} d6 {[%emt 0:06:30]} 12. Bc6 {[%emt 0:06:30]} Nxc6 {[%emt 0:09:30]} 13. Nxc6 {[%emt 0:00:30]} Bf6 {[%emt 0:00:30]} 14. Nc4 {[%emt 0:07:30]} Qb5 {[%emt 0:06:30]} 15. Na3 {[%emt 0:02:30]} Qa6 {[%emt 0:03:30]} 16. f3 {[%emt 0:05:30]} Ng5 {[%emt 0:00:30]} 17. Re1 {[%emt 0:00:30]} Bd7 {[%emt 0:00:30]} 18. Qb3 {[%emt 0:01:34]} Nf7 {[%emt 0:01:30]} 19. Qc4 {[%emt 0:06:03]} Qxc4 {[%emt 0:00:30]} 20. Nxc4 {[%emt 0:00:01]} Bxc6 {[%emt 0:00:30]} 21. dxc6 {[%emt 0:00:02]} Rac8 {[%emt 0:00:00]} 22. Re6 {[%emt 0:02:52]} Rxc6 {[%emt 0:01:00]} 23. Bf4 {[%emt 0:00:12]} Bd4+ {[%emt 0:00:30]} 24. Be3 {[%emt 0:01:37]} Bf6 {[%emt 0:09:34]} 25. Rd1 {[%emt 0:00:49]} Rd8 {[%emt 0:00:07]} 26. b3 {[%emt 0:00:43]} Kf8 {[%emt 0:02:08]} 27. Bf4 {[%emt 0:01:28]} Bd4+ {[%emt 0:00:46]} 28. Kf1 {[%emt 0:01:20]} g6 {[%emt 0:02:58]} 29. Rde1 {[%emt 0:01:22]} Rd7 {[%emt 0:02:06]} 30. Re8+ {[%emt 0:00:43]} Kg7 {[%emt 0:00:06]} 31. h4 {[%emt 0:00:36]} d5 {[%emt 0:00:17]} 32. Be5+ {[%emt 0:02:43]} Bxe5 {[%emt 0:01:17]} 33. Nxe5 {[%emt 0:00:09]} Nxe5 {[%emt 0:00:03]} 34. R1xe5 {[%emt 0:00:25]} Kf6 {[%emt 0:01:14]} 35. f4 {[%emt 0:00:07]} c4 {[%emt 0:00:33]} 36. bxc4 {[%emt 0:01:37]} dxc4 {[%emt 0:00:02]} 37. Re2 {[%emt 0:01:21]} c3 {[%emt 0:01:16]} 38. Rc2 {[%emt 0:00:08]} Rd4 {[%emt 0:05:17]} 39. g3 {[%emt 0:00:12]} Rd3 {[%emt 0:00:26]} 40. Kf2 {[%emt 0:00:06]} Rb6 {[%emt 0:01:36]} 41. Re3 {[%emt 0:01:34]} Rd2+ {[%emt 0:00:53]} 42. Rxd2 {[%emt 0:01:30]} cxd2 {[%emt 0:00:01]} 43. Ke2 {[%emt 0:00:30]} Rb2 {[%emt 0:00:36]} 44. a3 {[%emt 0:00:13]} Ra2 {[%emt 0:00:35]} 45. Kd1 {[%emt 0:01:29]} a5 {[%emt 0:00:36]} 46. Ke2 {[%emt 0:00:37]} Kg7 {[%emt 0:01:16]} 47. Rd3 {[%emt 0:00:24]} Kh6 {[%emt 0:00:08]} 48. Rxd2 {[%emt 0:02:13]} Rxa3 {[%emt 0:00:06]} 49. Kf2 {[%emt 0:00:06]} Kh5 {[%emt 0:00:08]} 50. Rd7 {[%emt 0:00:34]} Kg4 {[%emt 0:00:27]} 51. Rxh7 {[%emt 0:00:32]} Rf3+ {[%emt 0:00:53]} 52. Ke2 {[%emt 0:00:23]} Rxg3 {[%emt 0:00:05]} 53. Ra7 {[%emt 0:01:20]} Kxf4 {[%emt 0:02:55]} 54. h5 {[%emt 0:00:40]} g5 {[%emt 0:00:58]} 55. Rxa5 {[%emt 0:00:38]} Rh3 {[%emt 0:00:27]} 56. Ra4+ {[%emt 0:00:04]} Ke5 {[%emt 0:00:17]} 57. Ra5+ {[%emt 0:00:05]} Kf6 {[%emt 0:00:49]} 58. Ra6+ {[%emt 0:00:08]} Kf7 {[%emt 0:00:29]} 59. Ra5 {[%emt 0:00:16]} Rh2+ $11 {[%emt 0:00:22]} 60. Kf3 {[%emt 0:01:07]} g4+ {[%emt 0:00:17]} 61. Kf4 {[%emt 0:00:36]} Rf2+ {[%emt 0:01:31]} 62. Ke5 {[%emt 0:00:33]} g3 {[%emt 0:00:29]} 63. Ra7+ {[%emt 0:00:06]} Kg8 {[%emt 0:00:11]} 64. h6 {[%emt 0:00:53]} g2 {[%emt 0:00:27]} 65. Rg7+ {[%emt 0:00:04]} Kh8 {[%emt 0:00:45]} 66. Kf6 {[%emt 0:00:25]} f4 {[%emt 0:00:08]} 67. h7 {[%emt 0:01:45]} Ra2 {[%emt 0:01:15]} 68. Rg8+ {[%emt 0:00:25]} Kxh7 {[%emt 0:00:02]} 69. Rg4 {[%emt 0:00:26]} f3 {[%emt 0:00:31]} 70. Rg3 {[%emt 0:00:42]} Ra6+ {[%emt 0:00:30]} 71. Kf7 {[%emt 0:00:09]} Ra7+ {[%emt 0:00:04]} 0-1

[Event "24th Bosnjaci Open 2019"]
[Site "Bosnjaci"]
[Date "2019.01.05"]
[Round "4.14"]
[White "Blagojevic, Marijan"]
[Black "Ljubicic, Mario"]
[Result "1-0"]
[ECO "E91"]
[WhiteElo "2203"]
[BlackElo "1886"]
[Annotator "NA"]
[PlyCount "109"]
[EventDate "2019.01.03"]
[EventType "swiss"]
[EventCountry "CRO"]
[SourceTitle "playchess.com"]
[Source "ChessBase"]
[SourceQuality "1"]
[TimeControl "5400+30"]

1. d4 {[%emt 0:00:30]} Nf6 {[%emt 0:00:30]} 2. c4 {[%emt 0:00:00]} g6 {[%emt 0:00:00]} 3. Nc3 {[%emt 0:03:00]} Bg7 {[%emt 0:00:00]} 4. e4 {[%emt 0:01:30]} d6 {[%emt 0:00:00]} 5. Nf3 {[%emt 0:01:30]} Bg4 {[%emt 0:01:00]} 6. Be2 {[%emt 0:00:30]} O-O {[%emt 0:00:30]} 7. Be3 {[%emt 0:00:30]} Re8 {[%emt 0:01:30]} 8. O-O {[%emt 0:09:30]} Nc6 {[%emt 0:08:30]} 9. d5 {[%emt 0:03:30]} Bxf3 {[%emt 0:02:30]} 10. Bxf3 {[%emt 0:02:30]} Ne5 {[%emt 0:00:30]} 11. Be2 {[%emt 0:00:30]} Ned7 {[%emt 0:10:30]} 12. Qc2 {[%emt 0:04:30]} e5 {[%emt 0:01:30]} 13. b4 {[%emt 0:01:30]} Qe7 {[%emt 0:07:30]} 14. a3 {[%emt 0:02:30]} Rf8 {[%emt 0:06:30]} 15. Rac1 {[%emt 0:00:30]} b6 {[%emt 0:08:30]} 16. Rfe1 {[%emt 0:01:30]} Ne8 {[%emt 0:02:30]} 17. Bd3 {[%emt 0:01:30]} a6 {[%emt 0:04:30]} 18. Na4 {[%emt 0:01:30]} Ndf6 {[%emt 0:05:30]} 19. h3 {[%emt 0:03:30]} Nh5 {[%emt 0:02:30]} 20. c5 {[%emt 0:03:30]} b5 {[%emt 0:01:30]} 21. Nc3 {[%emt 0:04:30]} Nf4 {[%emt 0:01:30]} 22. Bf1 {[%emt 0:00:30]} Qd7 {[%emt 0:03:30]} 23. c6 {[%emt 0:06:30]} Qc8 {[%emt 0:00:30]} 24. g3 {[%emt 0:00:30]} Nh5 {[%emt 0:02:30]} 25. Qd1 {[%emt 0:03:30]} h6 {[%emt 0:15:58]} 26. Kh2 {[%emt 0:03:30]} Kh7 {[%emt 0:01:19]} 27. a4 {[%emt 0:03:30]} bxa4 {[%emt 0:00:48]} 28. Ra1 {[%emt 0:00:30]} a5 {[%emt 0:03:31]} 29. b5 {[%emt 0:00:30]} Rb8 {[%emt 0:03:44]} 30. Rxa4 {[%emt 0:00:30]} Ra8 {[%emt 0:00:09]} 31. Be2 {[%emt 0:09:30]} Nhf6 {[%emt 0:01:07]} 32. Bd3 {[%emt 0:01:30]} Ng8 {[%emt 0:01:01]} 33. Qc2 {[%emt 0:01:30]} f5 {[%emt 0:01:13]} 34. exf5 {[%emt 0:00:30]} gxf5 {[%emt 0:00:05]} 35. f3 {[%emt 0:02:30]} Kh8 {[%emt 0:00:12]} 36. Qd2 {[%emt 0:04:30]} Qd8 {[%emt 0:00:48]} 37. Bc2 {[%emt 0:02:09]} Ne7 {[%emt 0:01:55]} 38. Bxh6 {[%emt 0:00:22]} Ng6 {[%emt 0:00:20]} 39. Bg5 {[%emt 0:01:39]} Bf6 {[%emt 0:00:36]} 40. Bxf6+ {[%emt 0:00:46]} Qxf6 {[%emt 0:00:16]} 41. Qh6+ {[%emt 0:00:55]} Kg8 {[%emt 0:00:04]} 42. Rg1 {[%emt 0:07:58]} Kf7 {[%emt 0:00:47]} 43. Qe3 {[%emt 0:01:48]} Rh8 {[%emt 0:01:05]} 44. b6 {[%emt 0:00:18]} cxb6 {[%emt 0:01:29]} 45. Qxb6 {[%emt 0:00:02]} Ng7 {[%emt 0:00:33]} 46. Qc7+ {[%emt 0:02:03]} Ne7 {[%emt 0:00:07]} 47. Nb5 {[%emt 0:00:30]} Rad8 {[%emt 0:01:21]} 48. Rxa5 {[%emt 0:00:25]} f4 {[%emt 0:00:49]} 49. Ra7 {[%emt 0:00:54]} fxg3+ {[%emt 0:00:37]} 50. Rxg3 {[%emt 0:00:01]} Rhe8 {[%emt 0:00:34]} 51. Bg6+ {[%emt 0:00:08]} Kf8 {[%emt 0:00:15]} 52. Bxe8 {[%emt 0:00:24]} Rxe8 {[%emt 0:00:21]} 53. Nxd6 {[%emt 0:01:58]} Qf4 {[%emt 0:00:18]} 54. Qd7 {[%emt 0:03:43]} Nh5 {[%emt 0:00:59]} 55. Qxe8# {[%emt 0:00:06]} 1-0

[Event "24th Bosnjaci Open 2019"]
[Site "Bosnjaci"]
[Date "2019.01.05"]
[Round "4.15"]
[White "Bekcic, Martin"]
[Black "Lazor, Vladimir"]
[Result "0-1"]
[ECO "A48"]
[WhiteElo "1898"]
[BlackElo "2164"]
[Annotator "NA"]
[PlyCount "90"]
[EventDate "2019.01.03"]
[EventType "swiss"]
[EventCountry "CRO"]
[SourceTitle "playchess.com"]
[Source "ChessBase"]
[SourceQuality "1"]
[TimeControl "5400+30"]

1. d4 {[%emt 0:00:00]} Nf6 {[%emt 0:08:30]} 2. Bf4 {[%emt 0:00:00]} g6 {[%emt 0:00:30]} 3. e3 {[%emt 0:00:30]} Bg7 {[%emt 0:00:30]} 4. Nf3 {[%emt 0:00:30]} O-O {[%emt 0:00:30]} 5. Bc4 {[%emt 0:00:30]} d6 {[%emt 0:00:30]} 6. h3 {[%emt 0:00:30]} c6 {[%emt 0:00:30]} 7. O-O {[%emt 0:00:30]} Nbd7 {[%emt 0:01:30]} 8. Nbd2 {[%emt 0:00:30]} b5 {[%emt 0:01:30]} 9. Bb3 {[%emt 0:01:30]} Bb7 {[%emt 0:00:30]} 10. c3 {[%emt 0:00:30]} c5 {[%emt 0:02:30]} 11. Bc2 {[%emt 0:00:30]} a5 {[%emt 0:01:30]} 12. a3 {[%emt 0:04:30]} Qc7 {[%emt 0:03:30]} 13. Rc1 {[%emt 0:07:30]} Rac8 {[%emt 0:04:30]} 14. Bb1 {[%emt 0:01:30]} Qb6 {[%emt 0:01:30]} 15. Re1 {[%emt 0:03:30]} Rfe8 {[%emt 0:05:30]} 16. Bg3 {[%emt 0:04:30]} e5 {[%emt 0:07:30]} 17. dxe5 {[%emt 0:04:30]} dxe5 {[%emt 0:04:30]} 18. e4 {[%emt 0:08:30]} Rcd8 {[%emt 0:02:30]} 19. c4 {[%emt 0:02:30]} b4 {[%emt 0:01:30]} 20. Qb3 {[%emt 0:05:30]} Nh5 {[%emt 0:01:30]} 21. Bh2 {[%emt 0:00:30]} Nf8 {[%emt 0:00:30]} 22. Qe3 {[%emt 0:03:30]} Qc7 {[%emt 0:04:30]} 23. Bc2 {[%emt 0:02:30]} Ne6 {[%emt 0:00:30]} 24. Ba4 {[%emt 0:00:30]} Rf8 {[%emt 0:00:30]} 25. g3 {[%emt 0:05:30]} Nd4 {[%emt 0:05:30]} 26. Nxd4 {[%emt 0:09:30]} Rxd4 {[%emt 0:03:30]} 27. Nb3 {[%emt 0:03:30]} Rxe4 {[%emt 0:07:30]} 28. Qxc5 {[%emt 0:00:00]} Rxe1+ {[%emt 0:00:30]} 29. Rxe1 {[%emt 0:00:00]} Qd8 {[%emt 0:01:30]} 30. Qxa5 {[%emt 0:09:30]} Qf6 {[%emt 0:00:30]} 31. Nc5 {[%emt 0:03:57]} Ba8 {[%emt 0:00:00]} 32. Bd1 {[%emt 0:05:27]} Qc6 {[%emt 0:02:00]} 33. f3 {[%emt 0:04:40]} bxa3 {[%emt 0:02:30]} 34. bxa3 {[%emt 0:01:57]} e4 {[%emt 0:00:00]} 35. Nxe4 {[%emt 0:01:23]} Qxc4 {[%emt 0:00:00]} 36. Kh1 {[%emt 0:05:41]} h6 {[%emt 0:06:30]} 37. Qb4 {[%emt 0:00:26]} Qd3 {[%emt 0:01:30]} 38. Be2 {[%emt 0:00:46]} Qd7 {[%emt 0:00:30]} 39. Rd1 {[%emt 0:00:19]} Qxh3 {[%emt 0:00:30]} 40. Bf1 {[%emt 0:00:32]} Qf5 {[%emt 0:04:53]} 41. Kg2 {[%emt 0:00:44]} Nf6 {[%emt 0:01:11]} 42. Bd3 {[%emt 0:01:13]} Nd5 {[%emt 0:02:02]} 43. Qe1 {[%emt 0:00:31]} Qe5 {[%emt 0:02:01]} 44. f4 {[%emt 0:00:39]} Qb2+ {[%emt 0:01:19]} 45. Qd2 {[%emt 0:00:18]} Ne3+ {[%emt 0:02:17]} 0-1

[Event "24th Bosnjaci Open 2019"]
[Site "Bosnjaci"]
[Date "2019.01.05"]
[Round "4.16"]
[White "Jelecevic, Ivo"]
[Black "Tadic, Drago"]
[Result "0-1"]
[ECO "B32"]
[WhiteElo "2112"]
[BlackElo "1880"]
[Annotator "NA"]
[PlyCount "114"]
[EventDate "2019.01.03"]
[EventType "swiss"]
[EventCountry "CRO"]
[SourceTitle "playchess.com"]
[Source "ChessBase"]
[SourceQuality "1"]
[TimeControl "5400+30"]

1. e4 {[%emt 0:00:30]} c5 {[%emt 0:00:30]} 2. Nf3 {[%emt 0:00:30]} Nc6 {[%emt 0:00:30]} 3. d4 {[%emt 0:00:00]} cxd4 {[%emt 0:00:30]} 4. Nxd4 {[%emt 0:00:00]} e5 {[%emt 0:01:30]} 5. Nb5 {[%emt 0:00:30]} d6 {[%emt 0:00:30]} 6. c4 {[%emt 0:00:00]} a6 {[%emt 0:00:30]} 7. N5c3 {[%emt 0:00:00]} Nf6 {[%emt 0:00:30]} 8. Be2 {[%emt 0:00:30]} Be7 {[%emt 0:01:30]} 9. Be3 {[%emt 0:00:30]} O-O {[%emt 0:00:30]} 10. f3 {[%emt 0:00:30]} Nh5 {[%emt 0:02:30]} 11. Nd5 {[%emt 0:00:00]} f5 {[%emt 0:02:30]} 12. Nbc3 {[%emt 0:00:00]} f4 {[%emt 0:00:30]} 13. Bf2 {[%emt 0:00:30]} Nf6 {[%emt 0:00:30]} 14. Bb6 {[%emt 0:00:30]} Qd7 {[%emt 0:01:30]} 15. O-O {[%emt 0:00:30]} Bd8 {[%emt 0:00:30]} 16. Bf2 {[%emt 0:00:00]} Nxd5 {[%emt 0:03:30]} 17. cxd5 {[%emt 0:00:00]} Ne7 {[%emt 0:01:30]} 18. a4 {[%emt 0:00:30]} b6 {[%emt 0:00:30]} 19. b4 {[%emt 0:00:30]} Bb7 {[%emt 0:00:30]} 20. Qb3 {[%emt 0:00:30]} Kh8 {[%emt 0:00:30]} 21. Rfc1 {[%emt 0:00:30]} Rf6 {[%emt 0:06:30]} 22. Rc2 {[%emt 0:01:30]} Rg6 {[%emt 0:11:30]} 23. Kh1 {[%emt 0:03:30]} Rc8 {[%emt 0:07:30]} 24. Rac1 {[%emt 0:00:30]} h6 {[%emt 0:03:30]} 25. Nb1 {[%emt 0:05:30]} Rxc2 {[%emt 0:08:30]} 26. Qxc2 {[%emt 0:03:30]} Rf6 {[%emt 0:02:30]} 27. Nd2 {[%emt 0:00:30]} g5 {[%emt 0:00:30]} 28. Nc4 {[%emt 0:00:00]} Nc8 {[%emt 0:01:30]} 29. Qd1 {[%emt 0:00:00]} h5 {[%emt 0:00:30]} 30. Ra1 {[%emt 0:00:30]} Rg6 {[%emt 0:03:30]} 31. Qg1 {[%emt 0:00:30]} b5 {[%emt 0:02:30]} 32. axb5 {[%emt 0:00:30]} axb5 {[%emt 0:00:30]} 33. Na3 {[%emt 0:00:00]} Ba6 {[%emt 0:01:30]} 34. Rc1 {[%emt 0:00:00]} Qb7 {[%emt 0:01:30]} 35. Nxb5 {[%emt 0:01:30]} Bxb5 {[%emt 0:00:30]} 36. Bxb5 {[%emt 0:00:00]} Qxb5 {[%emt 0:00:30]} 37. Rxc8 {[%emt 0:00:00]} Rg8 {[%emt 0:00:30]} 38. Qe1 {[%emt 0:00:30]} Bb6 {[%emt 0:01:30]} 39. Rxg8+ {[%emt 0:08:30]} Kxg8 {[%emt 0:00:30]} 40. Bxb6 {[%emt 0:00:30]} Qxb6 {[%emt 0:00:30]} 41. h3 {[%emt 0:00:30]} h4 {[%emt 0:00:30]} 42. Qc3 {[%emt 0:00:30]} Qf2 {[%emt 0:02:30]} 43. Qc8+ {[%emt 0:00:30]} Kf7 {[%emt 0:01:30]} 44. Qf5+ {[%emt 0:00:30]} Kg7 {[%emt 0:01:30]} 45. Qxg5+ {[%emt 0:00:30]} Kh7 {[%emt 0:00:30]} 46. Kh2 {[%emt 0:00:30]} Qb6 {[%emt 0:01:30]} 47. Qxh4+ {[%emt 0:00:00]} Kg6 {[%emt 0:00:30]} 48. Qe1 {[%emt 0:00:00]} Kh5 {[%emt 0:00:30]} 49. g3 {[%emt 0:00:30]} fxg3+ {[%emt 0:01:30]} 50. Kxg3 {[%emt 0:00:30]} Qd8 {[%emt 0:00:30]} 51. Qe2 {[%emt 0:00:30]} Qg5+ {[%emt 0:00:30]} 52. Kf2 {[%emt 0:00:00]} Kh4 {[%emt 0:00:30]} 53. b5 {[%emt 0:00:00]} Kxh3 {[%emt 0:01:30]} 54. Qf1+ {[%emt 0:00:30]} Kh2 {[%emt 0:00:30]} 55. b6 {[%emt 0:00:30]} Qd2+ {[%emt 0:00:30]} 56. Qe2 {[%emt 0:00:00]} Qc1 {[%emt 0:01:30]} 57. b7 {[%emt 0:00:00]} Qg1# {[%emt 0:00:30]} 0-1